Workbook

Sheet Profitability Analysis
A2: *Any row of cells with a blue label can be adjusted to analyze the impact on the cost to the consumer and supplier profits
A4: Inputs | B4: ON | C4: BC | D4: AB | E4: SK | F4: MB | G4: NS | H4: NB | I4: PEI | J4: NFLD
A5: Share of National Market | B5: 0.55 | C5: 0.18 | D5: 0.15 | E5: 0.03 | F5: 0.03 | G5: 0.03 | H5: 0.03 | I5: 0 | J5: 0 | K5: =SUM(B5:J5) -> 1
A6: Interest Rate Ceiling | B6: 0.15 | C6: 0.23 | D6: 0.15 | E6: 0.23 | F6: 0.17 | G6: 0.22 | H6: 0.21 | I6: 0.25 | J6: 0.25
A8: Calculations
A9: Original IRC | B9: 0.21 | C9: 0.23 | D9: 0.23 | E9: 0.23 | F9: 0.17 | G9: 0.22 | H9: 0.21 | I9: 0.25 | J9: 0.25
A10: Decrease in Provincial Lending Revenue | B10: =(B9-B6)/B9 -> 0.2857142857 | C10: 0 | D10: 0.347826087 | E10: 0 | F10: 0 | G10: 0 | H10: 0 | I10: 0 | J10: 0
A11: Decrease in National Lending Revenue | B11: =B10*B5 -> 0.1571428571 | C11: 0 | D11: 0.05217391304 | E11: 0 | F11: 0 | G11: 0 | H11: 0 | I11: 0 | J11: 0
A13: IRR Reduction Impact on Cost to Borrower on Average Loan
A14: Average Loan Size | B14: 450
A15: Average Loan Term (days) | B15: 10
A16: Province | B16: ON | C16: BC | D16: AB | E16: SK | F16: MB | G16: NS | H16: NB | I16: PEI | J16: NFLD
A17: Interest Charge | B17: =$B$14*B6 -> 67.5 | C17: =$B$14*C6 -> 103.5 | D17: 67.5 | E17: 103.5 | F17: 76.5 | G17: 99 | H17: 94.5 | I17: =$B$14*I6 -> 112.5 | J17: =$B$14*J6 -> 112.5
A18: Amount Due | B18: =$B$14*(1+B6) -> 517.5 | C18: =$B$14*(1+C6) -> 553.5 | D18: 517.5 | E18: 553.5 | F18: 526.5 | G18: 549 | H18: 544.5 | I18: =$B$14*(1+I6) -> 562.5 | J18: 562.5
A19: Dollars Saved on Average Loan | B19: =((B$9*$B$14)-(B$6*$B$14)) -> 27 | C19: 0 | D19: 36 | E19: 0 | F19: 0 | G19: 0 | H19: 0 | I19: 0 | J19: 0
A20: Annual Percentage Rate | B20: =B6*(365/$B$15) -> 5.475 | C20: =C6*(365/$B$15) -> 8.395 | D20: 5.475 | E20: 8.395 | F20: 6.205 | G20: 8.03 | H20: 7.665 | I20: =I6*(365/$B$15) -> 9.125 | J20: 9.125
A21: IRR Reduction Impact on Operating Profit
A22: Company | B22: 2002 | C22: 2003 | D22: 2004 | E22: 2005 | F22: 2006 | G22: 2007 | H22: 2008 | I22: 2009 | J22: 2010 | K22: 2011 | L22: 2012 | M22: 2013 | N22: 5 Yr Avg ('09 - '13)
A23: National Money Mart | B23: =B63 -> 0 | C23: 0 | D23: 0 | E23: 0 | F23: 0 | G23: 0 | H23: =H85 -> 65.15991863 | I23: =I85 -> 58.71624472 | J23: 67.26030621 | K23: 78.16962733 | L23: 84.00900621 | M23: 83.49012422 | N23: =AVERAGE(H23:M23) -> 72.80087122
H24: =H131 -> 0.2620485327 | I24: =I131 -> 0.2784987813 | J24: 0.2735567649 | K24: 0.2843880137 | L24: 0.2913852998 | M24: 0.2867203153 | N24: =AVERAGE(I24:M24) -> 0.282909835
A25: Cash Store Financial | I25: =O85 -> 8.784624845 | J25: =P85 -> 13.81573043 | K25: -2.178485093 | L25: -20.36145839 | M25: -31.66215528 | N25: =AVERAGE(I25:M25) -> -6.320348696
I26: =O131 -> 0.07036220748 | J26: =P131 -> 0.07433577863 | K26: -0.01350567039 | L26: -0.1284411414 | M26: -0.1993099933 | N26: =AVERAGE(I26:M26) -> -0.03931176379
A27: IRR Reduction Impact on Operating Profit (with interest expense included)
A28: Company | B28: 2002 | C28: 2003 | D28: 2004 | E28: 2005 | F28: 2006 | G28: 2007 | H28: 2008 | I28: 2009 | J28: 2010 | K28: 2011 | L28: 2012 | M28: 2013 | N28: 5 Yr Avg ('09 - '13)
A29: National Money Mart | B29: =B69 -> 0 | C29: 0 | D29: 0 | E29: 0 | F29: 0 | G29: 0 | H29: =H86 -> 43.54891863 | I29: =I86 -> 42.21724472 | J29: 19.35030621 | K29: 13.06962733 | L29: 11.80900621 | M29: 7.890124224 | N29: =AVERAGE(H29:M29) -> 22.98087122
H30: =H132 -> 0.1751372695 | I30: =I132 -> 0.2002418796 | J30: 0.07870031322 | K30: 0.04754845945 | L30: 0.04095954673 | M30: 0.02709612575 | N30: =AVERAGE(I30:M30) -> 0.07890926495
A31: Cash Store Financial | I31: =O86 -> 8.784624845 | J31: =P86 -> 13.81573043 | K31: =Q86 -> -2.794485093 | L31: =R86 -> -32.70045839 | M31: =S86 -> -50.24515528 | N31: =AVERAGE(J31:M31) -> -17.98109208
I32: =O132 -> 0.07036220748 | J32: =P132 -> 0.07433577863 | K32: =Q132 -> -0.01732460538 | L32: =R132 -> -0.2062761969 | M32: =S132 -> -0.3162880567 | N32: =AVERAGE(J32:M32) -> -0.1163882701
A33: IRR Reduction Impact on Income Before Taxes
A34: Company | B34: 2002 | C34: 2003 | D34: 2004 | E34: 2005 | F34: 2006 | G34: 2007 | H34: 2008 | I34: 2009 | J34: 2010 | K34: 2011 | L34: 2012 | M34: 2013 | N34: 5 Yr Avg ('09 - '13)
A35: National Money Mart | B35: =B81 -> 14.26432298 | C35: =C81 -> 21.3500472 | D35: 20.82891739 | E35: 28.06145963 | F35: 40.6100354 | G35: 34.73006211 | H35: 36.53191863 | I35: -21.23875528 | J35: -28.74269379 | K35: 21.66962733 | L35: -6.590993789 | M35: -1.909875776 | N35: =AVERAGE(B35:M35) -> 13.297006
B36: =B127 -> 0.2594441467 | C36: =C127 -> 0.325646439 | D36: 0.2565108629 | E36: 0.2702024538 | F36: 0.3006390687 | G36: 0.1832633317 | H36: 0.1469175511 | I36: -0.1007381772 | J36: -0.1169004242 | K36: 0.07883601961 | L36: -0.0228608668 | M36: -0.00655886178 | N36: =AVERAGE(I36:M36) -> -0.03364446206
A37: Cash Store Financial | I37: =O81 -> -4.137375155 | J37: =P81 -> 1.839730435 | K37: -11.70848509 | L37: -85.76145839 | M37: -67.15815528 | N37: =AVERAGE(I37:M37) -> -33.3851487
I38: =O127 -> -0.03313913277 | J38: =P127 -> 0.0098987017 | K38: -0.07258757055 | L38: -0.5409877521 | M38: -0.4227536427 | N38: =AVERAGE(I38:M38) -> -0.2119138793
P39: *2010 is based on 15 months of operations
B40: National Money Mart | O40: The Cash Store Financial Services
B41: 2002 | C41: 2003 | D41: 2004 | E41: 2005 | F41: 2006 | G41: 2007 | H41: 2008 | I41: 2009 | J41: 2010 | K41: 2011 | L41: 2012 | M41: 2013 | O41: 2009 | P41: 2010 | Q41: 2011 | R41: 2012 | S41: 2013
A42: Lending Reveue as a Percentage of Loan Volume | B42: 0.22
A43: Estimated Loan Volume | B43: =B46/$B$42 -> 74 | C43: =C46/$B$42 -> 102.2363636 | D43: 143.0863636 | E43: 221.2727273 | F43: 318.1772727 | G43: 500.0454545 | H43: 669.6045455 | I43: 552.3545455 | J43: 672.05 | K43: 775.9090909 | L43: 825 | M43: 912.2727273
A45: Revenue
A46: Reported Consumer Lending | B46: 16.28 | C46: 22.492 | D46: 31.479 | E46: 48.68 | F46: 69.999 | G46: 110.01 | H46: 147.313 | I46: 121.518 | J46: 147.851 | K46: 170.7 | L46: 181.5 | M46: 200.7 | O46: 122.572 | P46: 171.612 | Q46: 136.623 | R46: 137.994 | S46: 152.43
A47: IRR Adjusted Consumer Lending | B47: =B46*(1-$B$11-$C$11-$D$11-$E$11-$F$11-$G$11-$H$11-$I$11-$J$11) -> 12.87232298 | C47: =C46*(1-$B$11-$C$11-$D$11-$E$11-$F$11-$G$11-$H$11-$I$11-$J$11) -> 17.7840472 | D47: 24.88991739 | E47: 38.49045963 | F47: 55.3470354 | G47: 86.98306211 | H47: 116.4779186 | I47: 96.08224472 | J47: 116.9033062 | K47: 134.9696273 | L47: 143.5090062 | M47: 158.6901242 | O47: 96.91562484 | P47: =P46*(1-$B$11-$C$11-$D$11-$E$11-$F$11-$G$11-$H$11-$I$11-$J$11) -> 135.6907304 | Q47: =Q46*(1-$B$11-$C$11-$D$11-$E$11-$F$11-$G$11-$H$11-$I$11-$J$11) -> 108.0255149 | R47: =R46*(1-$B$11-$C$11-$D$11-$E$11-$F$11-$G$11-$H$11-$I$11-$J$11) -> 109.1095416 | S47: =S46*(1-$B$11-$C$11-$D$11-$E$11-$F$11-$G$11-$H$11-$I$11-$J$11) -> 120.5238447
A48: Check Cashing | B48: 30.344 | C48: 33.301 | D48: 38.483 | E48: 43.686 | F48: 52.096 | G48: 66.646 | H48: 81.806 | I48: 67.83 | J48: 69.414 | K48: 73.4 | L48: 74.3 | M48: 70.5
A49: Other | B49: =4.363+7.401 -> 11.764 | C49: =5.143+9.334 -> 14.477 | D49: =5.795+12.033 -> 17.828 | E49: =6.845+4.167+10.665 -> 21.677 | F49: =8.334+5.302+14 -> 27.636 | G49: =11.678+3.081+21.121 -> 35.88 | H49: 50.372 | I49: 46.919 | J49: 59.556 | K49: 66.5 | L49: 70.5 | M49: 62 | O49: 27.933 | P49: 50.165 | Q49: 53.276 | R49: 49.418 | S49: 38.335
A50: Total Revenues | B50: =SUM(B47:B49) -> 54.98032298 | C50: =SUM(C47:C49) -> 65.5620472 | D50: 81.20091739 | E50: =SUM(E47:E49) -> 103.8534596 | F50: =SUM(F47:F49) -> 135.0790354 | G50: =SUM(G47:G49) -> 189.5090621 | H50: 248.6559186 | I50: 210.8312447 | J50: 245.8733062 | K50: 274.8696273 | L50: 288.3090062 | M50: 291.1901242 | O50: =SUM(O47:O49) -> 124.8486248 | P50: =SUM(P47:P49) -> 185.8557304 | Q50: 161.3015149 | R50: 158.5275416 | S50: 158.8588447
A52: Operating Expenses
A53: Salaries and benefits | H53: 63.247 | I53: 51.741 | J53: 58.126 | K53: 63.1 | L53: 64.8 | M53: 67.7 | O53: 56.102 | P53: 84.614 | Q53: 67.017 | R53: 65.944 | S53: 58.653
A54: Provision for loan losses | B54: 2.919 | C54: 3.247 | D54: 3.001 | E54: 5.819 | F54: 9.07 | G54: 13.692 | H54: 27.115 | I54: 23.201 | J54: 15.8 | K54: 19.9 | L54: 18.8 | M54: 23.1 | O54: 0.049 | P54: 0.788 | Q54: 2.559 | R54: 31.004 | S54: 36.607
A55: Retention Payments | O55: 17.988 | P55: 28.167 | Q55: 26.786 | R55: 9.968 | S55: 11.659
A56: Selling, general and administrative | O56: 26.715 | P56: 33.809 | Q56: 24.109 | R56: 23.595 | S56: 20.449
A57: Occupancy/Rent | H57: 16.161 | I57: 14.491 | J57: 16.054 | K57: 18.3 | L57: 21.1 | M57: 21.6 | O57: 11.943 | P57: 18.553 | Q57: 18.427 | R57: 18.94 | S57: 18.581
A58: Advertising and promotion | O58: 3.267 | P58: 6.109 | Q58: 5.941 | R58: 5.18 | S58: 6.307
A59: Purchased gold costs | K59: 8.8 | L59: 8.4 | M59: 5.8
A60: Depreciation | H60: 5.527 | I60: 4.752 | J60: 5.404 | K60: 6 | L60: 5.8 | M60: 6.5 | O60: 5.827 | P60: 8.138 | Q60: 6.803 | R60: 6.843 | S60: 6.366
A61: Other | H61: 39.273 | I61: 37.829 | J61: 46.311 | K61: 40.7 | L61: 42.4 | M61: 43.9
A62: Total operating expenses | H62: =SUM(H53:H61) -> 151.323 | I62: 132.014 | J62: 141.695 | K62: =SUM(K53:K61) -> 156.8 | L62: =SUM(L53:L61) -> 161.3 | M62: =SUM(M53:M61) -> 168.6 | O62: =SUM(O53:O61) -> 121.891 | P62: 180.178 | Q62: =SUM(Q53:Q61) -> 151.642 | R62: =SUM(R53:R61) -> 161.474 | S62: 158.622
A63: Operating Margin | H63: =H50-H62 -> 97.33291863 | I63: 78.81724472 | J63: 104.1783062 | K63: =K50-K62 -> 118.0696273 | L63: =L50-L62 -> 127.0090062 | M63: =M50-M62 -> 122.5901242 | O63: =O50-O62 -> 2.957624845 | P63: 5.677730435 | Q63: =Q50-Q62 -> 9.659514907 | R63: =R50-R62 -> -2.946458385 | S63: 0.2368447205
A65: Corporate and other expenses
A66: Corporate expenses | H66: 23.599 | I66: 16.285 | J66: 20.844 | K66: 23.3 | L66: 20.5 | M66: 21.4 | Q66: 18.641 | R66: 22.684 | S66: 38.142
A67: Intercompany charges | H67: 13.268 | I67: 7.406 | J67: 20.015 | K67: 21.9 | L67: 26.5 | M67: 22.1
A68: Other depreciation and amortization | H68: 1.49 | I68: 1.228 | J68: 1.287 | K68: 1.7 | L68: 3.4 | M68: 2.7 | Q68: 1.146 | R68: 0.835 | S68: 1.794
A69: Interest expense, net | H69: 21.611 | I69: 16.499 | J69: 47.91 | K69: 65.1 | L69: 72.2 | M69: 75.6 | Q69: 0.616 | R69: 12.339 | S69: 18.583
A70: Amortization of intangible Assets | O70: 0.185 | P70: 0.923 | Q70: 0.965 | R70: 5.138 | S70: 7.517
A71: Loss on extinguishment of debt | J71: 3.642
A72: Unrealized foreign exchange (gain) loss | J72: 2.168 | K72: -51.7 | L72: 12 | M72: 0.5
A73: Loss on derivatives not designated as hedges | J73: 12.948 | K73: 39.3 | L73: -2.9 | M73: 0
A74: (Proceeds from) provision for litigation settlements | H74: 0 | I74: 57.476 | J74: 22.644 | K74: -3.9 | L74: 0.1 | M74: 0.1 | O74: 6.91 | P74: 2.915
A75: Loss on store closings/Branch Closure Costs | H75: 0.119 | I75: 2.967 | J75: 0.945 | K75: 0.5 | L75: 0.4 | M75: 0.3 | Q75: 0 | R75: 1.574 | S75: 0.123
A76: Impairment of Property and Equipment | Q76: 0 | R76: 3.425 | S76: 1.236
A77: Expense to settle pre-exisitng relationships with third-party lenders | Q77: 0 | R77: 36.82 | S77: 0
A78: Other expense (income), net | H78: 0.714 | I78: -1.805 | J78: 0.518 | K78: 0.2 | L78: 1.4 | M78: 1.8
A79: Total Corporate and Other Expenses | H79: =SUM(H66:H78) -> 60.801 | I79: =SUM(I66:I78) -> 100.056 | J79: =SUM(J66:J78) -> 132.921 | K79: =SUM(K66:K78) -> 96.4 | L79: =SUM(L66:L78) -> 133.6 | M79: 124.5 | O79: =SUM(O66:O77) -> 7.095 | P79: 3.838 | Q79: =SUM(Q66:Q77) -> 21.368 | R79: =SUM(R66:R77) -> 82.815 | S79: 67.395
A80: Total Expenses | B80: 40.716 | C80: 44.212 | D80: 60.372 | E80: 75.792 | F80: 94.469 | G80: 154.779 | H80: =H79+H62 -> 212.124 | I80: =I79+I62 -> 232.07 | J80: 274.616 | K80: 253.2 | L80: 294.9 | M80: 293.1 | O80: 128.986 | P80: 184.016 | Q80: 173.01 | R80: 244.289 | S80: 226.017
A81: (Loss) income before income taxes | B81: =B50-B80 -> 14.26432298 | C81: 21.3500472 | D81: 20.82891739 | E81: 28.06145963 | F81: 40.6100354 | G81: 34.73006211 | H81: =H63-H79 -> 36.53191863 | I81: =I63-I79 -> -21.23875528 | J81: -28.74269379 | K81: =K63-K79 -> 21.66962733 | L81: =L63-L79 -> -6.590993789 | M81: -1.909875776 | O81: =O63-O79 -> -4.137375155 | P81: 1.839730435 | Q81: =Q63-Q79 -> -11.70848509 | R81: =R63-R79 -> -85.76145839 | S81: -67.15815528
A82: Income tax provision | B82: 8.105 | C82: 10.944 | D82: 10.111 | E82: 15.172 | F82: 21.307 | G82: 25.303 | H82: 25.721 | I82: -0.045 | J82: 5.161 | K82: 13.4 | L82: 13.5 | M82: 13.8 | O82: 6.872 | P82: 11.297 | Q82: 6.31 | R82: -13.355 | S82: 0.288
A83: Net (loss) income | B83: =B81-B82 -> 6.159322981 | C83: 10.4060472 | D83: 10.71791739 | E83: 12.88945963 | F83: =F81-F82 -> 19.3030354 | G83: 9.427062112 | H83: 10.81091863 | I83: -21.19375528 | J83: -33.90369379 | K83: =K81-K82 -> 8.269627329 | L83: =L81-L82 -> -20.09099379 | M83: =M81-M82 -> -15.70987578 | O83: =O81-O82 -> -11.00937516 | P83: -9.457269565 | Q83: =Q81-Q82 -> -18.01848509 | R83: =R81-R82 -> -72.40645839 | S83: -67.44615528
A85: Operating Profit | H85: =H81+H76+H74+H73+H71+H69+H68+H60+H77+H70+H72 -> 65.15991863 | I85: =I81+I76+I74+I73+I71+I69+I68+I60+I77+I70+I72 -> 58.71624472 | J85: 67.26030621 | K85: =K81+K76+K74+K73+K71+K69+K68+K60+K77+K70+K72 -> 78.16962733 | L85: 84.00900621 | M85: 83.49012422 | O85: 8.784624845 | P85: 13.81573043 | Q85: -2.178485093 | R85: -20.36145839 | S85: =S81+S76+S74+S73+S71+S69+S68+S60+S77+S70+S72 -> -31.66215528
A86: Operating Profit Including Interest Expense | H86: =H85-H69 -> 43.54891863 | I86: =I85-I69 -> 42.21724472 | J86: 19.35030621 | K86: 13.06962733 | L86: 11.80900621 | M86: 7.890124224 | O86: 8.784624845 | P86: =P85-P69 -> 13.81573043 | Q86: =Q85-Q69 -> -2.794485093 | R86: =R85-R69 -> -32.70045839 | S86: =S85-S69 -> -50.24515528
A87: Total Expenses (without non-reoccurring costs) | B87: =B80-B77-B76-B74-B73-B72-B71 -> 40.716 | C87: =C80-C77-C76-C74-C73-C72-C71 -> 44.212 | D87: 60.372 | E87: 75.792 | F87: 94.469 | G87: 154.779 | H87: 212.124 | I87: 174.594 | J87: 233.214 | K87: 269.5 | L87: 285.7 | M87: 292.5 | O87: 122.076 | P87: 181.101 | Q87: 173.01 | R87: 204.044 | S87: 224.781
B88: Revenue, Expense, Income as a % of Sales | O88: Revenue, Expense, Income as a % of Sales
B90: National Money Mart | O90: The Cash Store Financial Services
B91: 2002 | C91: 2003 | D91: 2004 | E91: 2005 | F91: 2006 | G91: 2007 | H91: 2008 | I91: 2009 | J91: 2010 | K91: 2011 | L91: 2012 | M91: 2013 | O91: 2009 | P91: 2010 | Q91: 2011 | R91: 2012 | S91: 2013
A92: Revenue
A93: Consumer Lending | B93: =B47/B$50 -> 0.2341259979 | C93: 0.2712552149 | D93: 0.3065226132 | E93: 0.3706227964 | F93: 0.4097381599 | G93: 0.4589915709 | H93: 0.4684301072 | I93: 0.4557305766 | J93: 0.4754615619 | K93: 0.4910314342 | L93: 0.4977610935 | M93: 0.5449708318 | O93: =O47/O$50 -> 0.7762650567 | P93: 0.7300863423 | Q93: 0.6697117195 | R93: 0.6882686788 | S93: 0.7586851392
A94: Check Cashing (Included in 'other' for CSF) | B94: =B48/B$50 -> 0.5519065432 | C94: 0.507931058 | D94: 0.4739232171 | E94: 0.4206504064 | F94: 0.3856705065 | G94: 0.3516771138 | H94: 0.3289927722 | I94: 0.3217265073 | J94: 0.2823161289 | K94: 0.2670356878 | L94: 0.2577096046 | M94: 0.2421098593 | O94: 0 | P94: 0 | Q94: 0 | R94: 0 | S94: 0
A95: Other | B95: =B49/B$50 -> 0.2139674589 | C95: 0.2208137271 | D95: 0.2195541697 | E95: 0.2087267971 | F95: 0.2045913336 | G95: 0.1893313153 | H95: 0.2025771205 | I95: 0.2225429161 | J95: 0.2422223092 | K95: 0.2419328779 | L95: 0.2445293018 | M95: 0.2129193089 | O95: 0.2237349433 | P95: 0.2699136577 | Q95: 0.3302882805 | R95: 0.3117313212 | S95: 0.2413148608
A96: Total Revenues | B96: =B50/B$50 -> 1 | C96: 1 | D96: 1 | E96: 1 | F96: 1 | G96: 1 | H96: 1 | I96: 1 | J96: 1 | K96: 1 | L96: 1 | M96: 1 | O96: 1 | P96: 1 | Q96: 1 | R96: 1 | S96: 1
A98: Operating Expenses
A99: Salaries and benefits | H99: =H53/H$50 -> 0.2543554979 | I99: 0.2454142889 | J99: 0.2364063057 | K99: 0.2295633774 | L99: 0.2247588476 | M99: 0.2324941486 | O99: =O53/O$50 -> 0.4493601757 | P99: 0.4552671032 | Q99: 0.4154765691 | R99: 0.4159781911 | S99: 0.3692145697
A100: Provision for loan losses | H100: =H54/H$50 -> 0.1090462682 | I100: 0.1100453589 | J100: 0.06426073755 | K100: 0.07239795896 | L100: 0.06520781382 | M100: 0.07932961347 | O100: 0.0003924752881 | P100: 0.004239847747 | Q100: 0.01586469911 | R100: 0.1955748489 | S100: 0.2304372795
A101: Retention Payments (Payments to third party lenders for losses) | O101: 0.1440784792 | P101: 0.1515530349 | Q101: 0.1660616766 | R101: 0.06287866385 | S101: 0.07339219935
A102: Selling, general and administrative | O102: 0.213979129 | P102: 0.1819099143 | Q102: 0.1494654282 | R102: 0.1488384905 | S102: 0.1287243404
A103: Occupancy/Rent | H103: =H57/H$50 -> 0.06499342581 | I103: 0.06873269671 | J103: 0.06529378991 | K103: 0.06657701754 | L103: 0.07318536551 | M103: 0.07417833987 | O103: 0.09565984419 | P103: 0.09982474017 | Q103: 0.1142394726 | R103: 0.1194745078 | S103: 0.1169654735
A104: Advertising and promotion | O104: 0.0261676891 | P104: 0.03286958108 | Q104: 0.03683164416 | R104: 0.03267571015 | S104: 0.0397019128
A105: Purchased gold costs | H105: =H59/H$50 -> 0 | I105: 0 | J105: 0 | K105: 0.03201517783 | L105: 0.02913540618 | M105: 0.01991825793
A106: Depreciation | H106: 0.02222750229 | I106: 0.02253935372 | J106: 0.02197879909 | K106: 0.02182853034 | L106: 0.02011730426 | M106: 0.02232218561 | O106: =O60/O$50 -> 0.04667252048 | P106: 0.04378665097 | Q106: 0.04217567333 | R106: 0.04316600087 | S106: 0.0400733117
A107: Other | H107: 0.157941143 | I107: 0.1794278645 | J107: 0.1883531023 | K107: 0.1480701975 | L107: 0.1470644312 | M107: 0.1507606074
A108: Total operating expenses | H108: 0.6085638373 | I108: 0.6261595627 | J108: 0.5762927346 | K108: 0.5704522596 | L108: 0.5594691686 | M108: 0.5790031528 | O108: =O62/O$50 -> 0.976310313 | P108: 0.9694508723 | Q108: 0.9401151631 | R108: 1.018586413 | S108: 0.998509087
A109: Operating Margin | H109: =H63/H50 -> 0.3914361627 | I109: =I63/I50 -> 0.3738404373 | J109: 0.4237072654 | K109: 0.4295477404 | L109: 0.4405308314 | M109: =M63/M50 -> 0.4209968472 | O109: =O63/O50 -> 0.023689687 | P109: 0.03054912766 | Q109: 0.05988483687 | R109: -0.01858641316 | S109: 0.001490913024
A111: Corporate and other expenses
A112: Corporate expenses | H112: =H66/H$50 -> 0.09490624687 | I112: 0.07724187191 | J112: 0.08477536794 | K112: 0.08476745949 | L112: 0.07110426507 | M112: 0.07349150338 | O112: =O66/O$50 -> 0 | P112: =P66/P$50 -> 0 | Q112: =Q66/Q$50 -> 0.1155661806 | R112: =R66/R$50 -> 0.143091855 | S112: =S66/S$50 -> 0.2400999458
A113: Intercompany charges | H113: 0.05335887468 | I113: 0.03512762072 | J113: 0.08140371278 | K113: 0.07967413574 | L113: 0.09191526948 | M113: 0.07589543107
A114: Other depreciation and amortization | H114: 0.005992216104 | I114: 0.00582456363 | J114: 0.005234403115 | K114: 0.006184750263 | L114: 0.0117929025 | M114: 0.009272292483 | O114: =O68/O$50 -> 0 | P114: 0 | Q114: 0.007104706987 | R114: 0.005267223547 | S114: 0.01129304448
A115: Interest expense, net | H115: 0.08691126324 | I115: 0.07825690173 | J115: 0.1948564516 | K115: 0.2368395542 | L115: 0.2504257531 | M115: 0.2596241895 | O115: 0 | P115: 0 | Q115: 0.003818934995 | R115: 0.0778350555 | S115: 0.1169780633
A116: Amortization of intangible Assets | O116: 0.001481794455 | P116: 0.004966217602 | Q116: 0.005982584854 | R116: 0.03241077196 | S116: 0.04731873767
A117: Loss on extinguishment of debt | H117: =H71/H$50 -> 0 | I117: 0 | J117: 0.01481250672 | K117: 0 | L117: 0 | M117: 0
A118: Unrealized foreign exchange (gain) loss | H118: 0 | I118: 0 | J118: 0.008817549304 | K118: -0.1880891698 | L118: 0.04162200882 | M118: 0.001717091201
A119: Loss on derivatives not designated as hedges | H119: 0 | I119: 0 | J119: 0.05266126771 | K119: 0.1429768737 | L119: -0.01005865213 | M119: 0
A120: (Proceeds from) provision for litigation settlements | H120: 0 | I120: 0.2726161394 | J120: 0.09209621146 | K120: -0.01418854472 | L120: 0.0003468500735 | M120: 0.0003434182401 | O120: =O74/O$50 -> 0.05534702532 | P120: 0.01568420835 | Q120: 0 | R120: 0 | S120: 0
A121: Loss on store closings/Branch Closure Costs | H121: 0.000478572964 | I121: 0.01407286669 | J121: 0.003843442847 | K121: 0.001819044195 | L121: 0.001387400294 | M121: 0.00103025472 | O121: 0 | P121: 0 | Q121: 0 | R121: 0.009928874087 | S121: 0.0007742722806
A122: Impairment of Property and Equipment | O122: 0 | P122: 0 | Q122: 0 | R122: 0.02160507862 | S122: 0.007780492186
A123: Expense to settle pre-exisitng relationships with third-party lenders | O123: 0 | P123: 0 | Q123: 0 | R123: 0.2322624802 | S123: 0
A124: Other expense (income), net | H124: =H78/H$50 -> 0.002871437784 | I124: -0.008561349635 | J124: 0.002106776079 | K124: 0.000727617678 | L124: 0.004855901029 | M124: 0.006181528322
A125: Total Corporate and Other Expenses | H125: =H79/H$50 -> 0.2445186116 | I125: 0.4745786144 | J125: 0.5406076896 | K125: 0.3507117208 | L125: 0.4633916982 | M125: 0.4275557089 | O125: =O79/O$50 -> 0.05682881977 | P125: =P79/P$50 -> 0.02065042596 | Q125: =Q79/Q$50 -> 0.1324724074 | R125: =R79/R$50 -> 0.5224013389 | S125: =S79/S$50 -> 0.4242445557
A126: Total Expenses | B126: =B80/B$50 -> 0.7405558533 | C126: 0.674353561 | D126: 0.7434891371 | E126: 0.7297975462 | F126: 0.6993609313 | G126: 0.8167366683 | H126: 0.8530824489 | I126: 1.100738177 | J126: 1.116900424 | K126: 0.9211639804 | L126: 1.022860867 | M126: 1.006558862 | O126: =O80/O$50 -> 1.033139133 | P126: =P80/P$50 -> 0.9901012983 | Q126: =Q80/Q$50 -> 1.072587571 | R126: =R80/R$50 -> 1.540987752 | S126: 1.422753643
A127: (Loss) income before income taxes | B127: =B81/B50 -> 0.2594441467 | C127: =C81/C50 -> 0.325646439 | D127: 0.2565108629 | E127: 0.2702024538 | F127: 0.3006390687 | G127: 0.1832633317 | H127: 0.1469175511 | I127: -0.1007381772 | J127: -0.1169004242 | K127: 0.07883601961 | L127: -0.0228608668 | M127: -0.00655886178 | O127: =O81/O50 -> -0.03313913277 | P127: =P81/P50 -> 0.0098987017 | Q127: -0.07258757055 | R127: -0.5409877521 | S127: =S81/S50 -> -0.4227536427
A128: Income tax provision
A129: Net (loss) income | B129: =B83/B50 -> 0.1120277701 | C129: =C83/C50 -> 0.158720596 | D129: 0.1319925653 | E129: 0.1241119908 | F129: 0.142901786 | G129: 0.04974465077 | H129: 0.04347742331 | I129: -0.1005247363 | J129: -0.1378909094 | K129: 0.03008563518 | L129: -0.06968562673 | M129: -0.05395057892 | O129: =O83/O50 -> -0.0881817895 | P129: =P83/P50 -> -0.05088500388 | Q129: -0.111706856 | R129: -0.4567437156 | S129: -0.4245665729
A131: Operating Profit | H131: =H85/H50 -> 0.2620485327 | I131: =I85/I50 -> 0.2784987813 | J131: 0.2735567649 | K131: 0.2843880137 | L131: 0.2913852998 | M131: 0.2867203153 | O131: 0.07036220748 | P131: 0.07433577863 | Q131: -0.01350567039 | R131: -0.1284411414 | S131: -0.1993099933
A132: Operating Profit Including Interest Expense | H132: =H86/H50 -> 0.1751372695 | I132: =I86/I50 -> 0.2002418796 | J132: 0.07870031322 | K132: 0.04754845945 | L132: 0.04095954673 | M132: 0.02709612575 | O132: 0.07036220748 | P132: 0.07433577863 | Q132: -0.01732460538 | R132: -0.2062761969 | S132: -0.3162880567
B133: Expense Distribution (Not including non-reoccurring expenses) | O133: Expense Distribution (Not including non-reoccurring expenses)
B135: National Money Mart | O135: The Cash Store Financial Services
B136: 2002 | C136: 2003 | D136: 2004 | E136: 2005 | F136: 2006 | G136: 2007 | H136: 2008 | I136: 2009 | J136: 2010 | K136: 2011 | L136: 2012 | M136: 2013 | O136: 2009 | P136: 2010 | Q136: 2011 | R136: 2012 | S136: 2013
A137: Estimated Provision for Losses as a % of Loan Volume | B137: =B54/B43 -> 0.03944594595 | C137: 0.0317597368 | D137: 0.02097334731 | E137: 0.0262978636 | F137: 0.02850612152 | G137: 0.02738151077 | H137: 0.04049405008 | I137: 0.04200381836 | J137: 0.02351015549 | K137: 0.0256473345 | L137: 0.02278787879 | M137: 0.02532137519
A139: Operating Expenses
A140: Salaries and benefits | H140: =H53/H$87 -> 0.2981605099 | I140: 0.29635039 | J140: 0.2492388965 | K140: 0.2341372913 | L140: 0.2268113406 | M140: 0.2314529915 | O140: =O53/O$87 -> 0.4595661719 | P140: 0.4672199491 | Q140: 0.3873591122 | R140: 0.3231851954 | S140: 0.2609339757
A141: Provision for loan losses | H141: 0.1278261771 | I141: 0.1328854371 | J141: 0.06774893446 | K141: 0.07384044527 | L141: 0.06580329016 | M141: 0.07897435897 | O141: 0.0004013892985 | P141: 0.004351163163 | Q141: 0.01479105254 | R141: 0.1519476191 | S141: 0.1628562912
A142: Retention Payments | O142: 0.1473508306 | P142: 0.155531996 | Q142: 0.1548234206 | R142: 0.04885220835 | S142: 0.05186826289
A143: Selling, general and administrative | O143: 0.2188390838 | P143: 0.1866858825 | Q143: 0.1393503266 | R143: 0.1156368234 | S143: 0.09097299149
A144: Occupancy/Rent | H144: =H57/H$87 -> 0.07618657012 | I144: =I57/I$87 -> 0.08299827027 | J144: 0.0688380629 | K144: 0.06790352505 | L144: 0.07385369268 | M144: 0.07384615385 | O144: 0.09783249779 | P144: 0.1024455967 | Q144: 0.1065082943 | R144: 0.09282311658 | S144: 0.08266268056
A145: Advertising and promotion | O145: 0.0267620171 | P145: 0.03373255808 | Q145: 0.03433905555 | R145: 0.0253866813 | S145: 0.02805842131
A146: Purchased gold costs | H146: =H59/H$87 -> 0 | I146: =I59/I$87 -> 0 | J146: 0 | K146: 0.03265306122 | L146: 0.02940147007 | M146: 0.01982905983
A147: Depreciation | H147: =H60/H$87 -> 0.0260555147 | I147: =I60/I$87 -> 0.02721743015 | J147: 0.02317185075 | K147: 0.02226345083 | L147: 0.02030101505 | M147: 0.02222222222 | O147: =O60/O$87 -> 0.04773256004 | P147: =P60/P$87 -> 0.04493625104 | Q147: =Q60/Q$87 -> 0.03932142651 | R147: =R60/R$87 -> 0.0335368842 | S147: =S60/S$87 -> 0.02832089901
A148: Other | H148: =H61/H$87 -> 0.1851417096 | I148: 0.2166683849 | J148: 0.1985772724 | K148: 0.1510204082 | L148: 0.1484074204 | M148: 0.1500854701
A149: Total operating expenses | H149: =H62/H$87 -> 0.7133704814 | I149: 0.7561199125 | J149: 0.6075750169 | K149: 0.5818181818 | L149: 0.5645782289 | M149: 0.5764102564 | O149: =O62/O$87 -> 0.9984845506 | P149: =P62/P$87 -> 0.9949033964 | Q149: 0.8764926883 | R149: 0.7913685284 | S149: 0.7056735222
A151: Corporate and other expenses
A152: Corporate expenses | H152: =H66/H$87 -> 0.1112509664 | I152: 0.09327353746 | J152: 0.08937713859 | K152: 0.08645640074 | L152: 0.07175358768 | M152: 0.07316239316 | O152: =O66/O$87 -> 0 | P152: =P66/P$87 -> 0 | Q152: =Q66/Q$87 -> 0.107745217 | R152: =R66/R$87 -> 0.1111721001 | S152: =S66/S$87 -> 0.1696851602
A153: Intercompany charges | H153: 0.06254832079 | I153: 0.04241841071 | J153: 0.08582246349 | K153: 0.08126159555 | L153: 0.09275463773 | M153: 0.07555555556
A154: Other depreciation and amortization | H154: 0.007024193396 | I154: 0.007033460485 | J154: 0.005518536623 | K154: 0.006307977737 | L154: 0.01190059503 | M154: 0.009230769231 | O154: =O68/O$87 -> 0 | P154: 0 | Q154: 0.006623894573 | R154: 0.004092254612 | S154: 0.007981101606
A155: Interest expense, net | H155: 0.1018790896 | I155: 0.09449923823 | J155: 0.2054336361 | K155: 0.2415584416 | L155: 0.2527126356 | M155: 0.2584615385 | O155: 0 | P155: 0 | Q155: 0.003560487833 | R155: 0.06047225108 | S155: 0.08267157811
A156: Amortization of intangible Assets | O156: 0.001515449392 | P156: 0.005096603553 | Q156: 0.005577712271 | R156: 0.02518084335 | S156: 0.03344143856
A157: Loss on store closings/Branch Closure Costs | H157: =H75/H$87 -> 0.000560992627 | I157: =I75/I$87 -> 0.01699371112 | J157: 0.004052072346 | K157: 0.00185528757 | L157: 0.001400070004 | M157: 0.001025641026 | O157: 0 | P157: 0 | Q157: 0 | R157: 0.007714022466 | S157: 0.000547199274
A158: Other expense (income), net | H158: =H78/H$87 -> 0.003365955762 | I158: =I78/I$87 -> -0.0103382705 | J158: =J78/J$87 -> 0.002221135952 | K158: 0.0007421150278 | L158: 0.004900245012 | M158: 0.006153846154
A159: Total Expenses (without non-reoccurring costs) | B159: =B87/B$87 -> 1 | C159: =C87/C$87 -> 1 | D159: 1 | E159: 1 | F159: 1 | G159: 1 | H159: 1 | I159: 1 | J159: 1 | K159: 1 | L159: 1 | M159: 1 | O159: 1 | P159: 1 | Q159: 1 | R159: 1 | S159: 1
B161: Expense Distribution (Total Expenses) | O161: Expense Distribution (Total Expenses)
B163: National Money Mart | O163: The Cash Store Financial Services
B164: 2002 | C164: 2003 | D164: 2004 | E164: 2005 | F164: 2006 | G164: 2007 | H164: 2008 | I164: 2009 | J164: 2010 | K164: 2011 | L164: 2012 | M164: 2013 | O164: 2009 | P164: 2010 | Q164: 2011 | R164: 2012 | S164: 2013
A165: Operating Expenses
A166: Salaries and benefits | H166: =H53/H$80 -> 0.2981605099 | I166: =I53/I$80 -> 0.222954281 | J166: 0.211662831 | K166: 0.2492101106 | L166: 0.2197355036 | M166: 0.230979188 | O166: 0.4349464283 | P166: 0.4598187114 | Q166: 0.3873591122 | R166: 0.269942568 | S166: 0.2595070282
A167: Provision for loan losses | H167: =H54/H$80 -> 0.1278261771 | I167: 0.09997414573 | J167: 0.05753488508 | K167: 0.07859399684 | L167: 0.06375042387 | M167: 0.07881269191 | O167: 0.0003798861892 | P167: 0.004282236327 | Q167: 0.01479105254 | R167: 0.126915252 | S167: 0.1619656928
A168: Retention Payments | O168: 0.1394569953 | P168: 0.1530682115 | Q168: 0.1548234206 | R168: 0.04080412954 | S168: 0.05158461532
A169: Selling, general and administrative | O169: 0.2071155009 | P169: 0.1837285888 | Q169: 0.1393503266 | R169: 0.09658642018 | S169: 0.09047549521
A170: Occupancy/Rent | H170: =H57/H$80 -> 0.07618657012 | I170: 0.06244236653 | J170: 0.05845981298 | K170: 0.07227488152 | L170: 0.07154967786 | M170: 0.07369498465 | O170: 0.09259144403 | P170: 0.1008227545 | Q170: 0.1065082943 | R170: 0.07753112093 | S170: 0.08221063017
A171: Advertising and promotion | O171: =O58/O$80 -> 0.02532833021 | P171: =P58/P$80 -> 0.03319820016 | Q171: =Q58/Q$80 -> 0.03433905555 | R171: =R58/R$80 -> 0.02120439316 | S171: =S58/S$80 -> 0.0279049806
A172: Purchased gold costs | H172: =H59/H$80 -> 0 | I172: 0 | J172: 0 | K172: 0.03475513428 | L172: 0.02848423194 | M172: 0.0197884681
A173: Depreciation | H173: 0.0260555147 | I173: 0.02047658034 | J173: 0.01967838728 | K173: 0.02369668246 | L173: 0.01966768396 | M173: 0.02217673149 | O173: =O60/O$80 -> 0.0451754454 | P173: =P60/P$80 -> 0.04422441527 | Q173: =Q60/Q$80 -> 0.03932142651 | R173: =R60/R$80 -> 0.02801190393 | S173: =S60/S$80 -> 0.02816602291
A174: Other | H174: 0.1851417096 | I174: 0.1630068514 | J174: 0.1686391179 | K174: 0.1607424961 | L174: 0.1437775517 | M174: 0.1497782327
A175: Total operating expenses | H175: 0.7133704814 | I175: 0.568854225 | J175: 0.5159750342 | K175: 0.6192733017 | L175: 0.5469650729 | M175: 0.5752302968 | O175: =O62/O$80 -> 0.9449940304 | P175: =P62/P$80 -> 0.979143118 | Q175: =Q62/Q$80 -> 0.8764926883 | R175: =R62/R$80 -> 0.6609957878 | S175: =S62/S$80 -> 0.7018144653
A177: Corporate and other expenses
A178: Corporate expenses | H178: =H66/H$80 -> 0.1112509664 | I178: 0.07017279269 | J178: 0.07590235092 | K178: 0.0920221169 | L178: 0.06951508986 | M178: 0.07301262368 | O178: 0 | P178: 0 | Q178: 0.107745217 | R178: 0.09285723058 | S178: 0.1687572174
A179: Intercompany charges | H179: 0.06254832079 | I179: 0.03191278494 | J179: 0.07288359018 | K179: 0.086492891 | L179: 0.08986096982 | M179: 0.07540088707
A180: Other depreciation and amortization | H180: 0.007024193396 | I180: 0.005291506873 | J180: 0.00468654412 | K180: 0.006714060032 | L180: 0.01152933198 | M180: 0.009211873081 | O180: 0 | P180: 0 | Q180: 0.006623894573 | R180: 0.003418082681 | S180: 0.007937456032
A181: Interest expense, net | H181: 0.1018790896 | I181: 0.07109492825 | J181: 0.1744617939 | K181: 0.2571090047 | L181: 0.2448287555 | M181: 0.2579324463 | O181: 0 | P181: 0 | Q181: 0.003560487833 | R181: 0.05050984694 | S181: 0.08221947907
A182: Amortization of intangible Assets | O182: 0.001434264184 | P182: 0.005015868185 | Q182: 0.005577712271 | R182: 0.02103246565 | S182: 0.0332585602
A183: Loss on extinguishment of debt | H183: =H71/H$80 -> 0 | I183: 0 | J183: 0.01326215515 | K183: 0 | L183: 0 | M183: 0
A184: Unrealized foreign exchange (gain) loss | H184: 0 | I184: 0 | J184: 0.00789466018 | K184: -0.2041864139 | L184: 0.04069175992 | M184: 0.001705902422
A185: Loss on derivatives not designated as hedges | H185: 0 | I185: 0 | J185: 0.04714947417 | K185: 0.1552132701 | L185: -0.00983384198 | M185: 0
A186: (Proceeds from) provision for litigation settlements | H186: 0 | I186: 0.2476666523 | J186: 0.08245695808 | K186: -0.0154028436 | L186: 0.0003390979993 | M186: 0.0003411804845 | O186: =O74/O$80 -> 0.05357170546 | P186: 0.01584101382 | Q186: 0 | R186: 0 | S186: 0
A187: Loss on store closings/Branch Closure Costs | H187: 0.000560992627 | I187: 0.01278493558 | J187: 0.003441168759 | K187: 0.001974723539 | L187: 0.001356391997 | M187: 0.001023541453 | O187: 0 | P187: 0 | Q187: 0 | R187: 0.006443188191 | S187: 0.0005442068517
A188: Impairment of Property and Equipment | O188: 0 | P188: 0 | Q188: 0 | R188: 0.01402027926 | S188: 0.005468615193
A189: Expense to settle pre-exisitng relationships with third-party lenders | O189: 0 | P189: 0 | Q189: 0 | R189: 0.1507231189 | S189: 0
A190: Other expense (income), net | H190: =H78/H$80 -> 0.003365955762 | I190: -0.007777825656 | J190: 0.001886270283 | K190: 0.0007898894155 | L190: 0.004747371991 | M190: 0.006141248721
A191: Total Corporate and Other Expenses | H191: 0.2866295186 | I191: 0.431145775 | J191: 0.4840249658 | K191: 0.3807266983 | L191: 0.4530349271 | M191: 0.4247697032 | O191: 0.05500596964 | P191: 0.02085688201 | Q191: 0.1235073117 | R191: 0.3390042122 | S191: 0.2981855347
A192: Total Expenses | B192: =B80/B$80 -> 1 | C192: 1 | D192: 1 | E192: 1 | F192: 1 | G192: 1 | H192: 1 | I192: 1 | J192: 1 | K192: 1 | L192: 1 | M192: 1 | O192: 1 | P192: 1 | Q192: 1 | R192: 1 | S192: 1
B194: Growth Rate Year over Year | O194: Growth Rate Year over Year
B196: National Money Mart | O196: The Cash Store Financial Services
B197: 2002 | C197: 2003 | D197: 2004 | E197: 2005 | F197: 2006 | G197: 2007 | H197: 2008 | I197: 2009 | J197: 2010 | K197: 2011 | L197: 2012 | M197: 2013 | O197: 2009 | P197: 2010 | Q197: 2011 | R197: 2012 | S197: 2013
A198: Estimated Loan Volume | C198: =(C43-B43)/B43 -> 0.3815724816 | D198: =(D43-C43)/C43 -> 0.3995642895 | E198: 0.5464277772 | F198: 0.4379416598 | G198: 0.5715938799 | H198: 0.3390873557 | I198: -0.1751033514 | J198: 0.2167004065 | K198: 0.15454072 | L198: 0.06326889279 | M198: 0.105785124
A200: Revenue
A201: Consumer Lending | C201: =(C47-B47)/B47 -> 0.3815724816 | D201: =(D47-C47)/C47 -> 0.3995642895 | E201: 0.5464277772 | F201: 0.4379416598 | G201: 0.5715938799 | H201: 0.3390873557 | I201: -0.1751033514 | J201: 0.2167004065 | K201: 0.15454072 | L201: 0.06326889279 | M201: 0.105785124 | P201: =(P47-O47)/O47 -> 0.4000913749 | Q201: -0.2038843438 | R201: 0.01003491359 | S201: 0.1046132441
A202: Check Cashing (Included in 'other' for CSF) | C202: =(C48-B48)/B48 -> 0.09744924862 | D202: 0.1556109426 | E202: 0.135202557 | F202: 0.1925101863 | G202: 0.2792920762 | H202: 0.2274705159 | I202: -0.1708432144 | J202: 0.02335249889 | K202: 0.0574235745 | L202: 0.01226158038 | M202: -0.05114401077
A203: Other | C203: 0.2306188371 | D203: 0.2314706086 | E203: 0.2158963428 | F203: 0.2748996632 | G203: 0.2983065567 | H203: 0.4039018952 | I203: -0.06854998809 | J203: 0.2693365161 | K203: 0.1165961448 | L203: 0.06015037594 | M203: -0.1205673759 | P203: =(P49-O49)/O49 -> 0.7959044857 | Q203: 0.06201534935 | R203: -0.0724153465 | S203: -0.2242705087
A204: Total Revenues | C204: 0.1924638425 | D204: 0.2385354157 | E204: 0.2789690433 | F204: 0.300669577 | G204: 0.4029494773 | H204: 0.3121056896 | I204: -0.1521165236 | J204: 0.1662090528 | K204: 0.1179319608 | L204: 0.04889364828 | M204: 0.009993159944 | P204: 0.4886485988 | Q204: -0.132114385 | R204: -0.01719744104 | S204: 0.002089877268
A206: Operating Expenses
A207: Salaries and benefits | I207: =(I53-H53)/H53 -> -0.1819216722 | J207: =(J53-I53)/I53 -> 0.1234031039 | K207: =(K53-J53)/J53 -> 0.08557272133 | L207: =(L53-K53)/K53 -> 0.02694136292 | M207: =(M53-L53)/L53 -> 0.04475308642 | P207: =(P53-O53)/O53 -> 0.5082171759 | Q207: -0.2079679486 | R207: -0.01601086292 | S207: -0.1105635084
A208: Provision for loan losses | C208: =(C54-B54)/B54 -> 0.1123672491 | D208: -0.07576224207 | E208: 0.9390203266 | F208: 0.5586870596 | G208: 0.5095920617 | H208: 0.9803534911 | I208: -0.1443481468 | J208: -0.3189948709 | K208: 0.2594936709 | L208: -0.05527638191 | M208: 0.2287234043 | P208: 15.08163265 | Q208: 2.247461929 | R208: 11.11567018 | S208: 0.180718617
A209: Retention Payments | P209: 0.5658772515 | Q209: -0.04902900557 | R209: -0.6278653028 | S209: 0.1696428571
A210: Selling, general and administrative | P210: 0.265543702 | Q210: -0.2869058535 | R210: -0.02131983906 | S210: -0.1333333333
A211: Occupancy/Rent | I211: =(I57-H57)/H57 -> -0.1033351897 | J211: =(J57-I57)/I57 -> 0.1078600511 | K211: =(K57-J57)/J57 -> 0.139902828 | L211: =(L57-K57)/K57 -> 0.1530054645 | M211: =(M57-L57)/L57 -> 0.02369668246 | P211: 0.5534622792 | Q211: -0.006791354498 | R211: 0.02783958322 | S211: -0.01895459345
A212: Advertising and promotion | P212: 0.8699112335 | Q212: -0.02750040923 | R212: -0.1280929137 | S212: 0.2175675676
A213: Purchased gold costs | L213: =(L59-K59)/K59 -> -0.04545454545 | M213: -0.3095238095
A214: Depreciation | I214: =(I60-H60)/H60 -> -0.1402207346 | J214: 0.1372053872 | K214: 0.1102886751 | L214: -0.03333333333 | M214: 0.1206896552 | P214: =(P60-O60)/O60 -> 0.3966020251 | Q214: -0.16404522 | R214: 0.00587975893 | S214: -0.06970626918
A215: Other | I215: -0.03676826318 | J215: 0.2242195141 | K215: -0.1211591199 | L215: 0.04176904177 | M215: 0.03537735849
A216: Total operating expenses | I216: -0.1276012239 | J216: 0.07333313133 | K216: 0.106602209 | L216: 0.02869897959 | M216: 0.04525728456 | P216: =(P62-O62)/O62 -> 0.47818953 | Q216: -0.1583767164 | R216: 0.06483691853 | S216: -0.01766228619
A217: Operating Margin | I217: -0.190230337 | J217: 0.3217704651 | K217: 0.1333417832 | L217: 0.07571277291 | M217: -0.03479187909 | P217: 0.9196925685 | Q217: 0.7012986118 | R217: -1.305031714 | S217: -1.080382849
A219: Corporate and other expenses
A220: Corporate expenses | I220: =(I66-H66)/H66 -> -0.3099283868 | J220: 0.279950875 | K220: 0.1178276722 | L220: -0.1201716738 | M220: 0.04390243902 | R220: =(R66-Q66)/Q66 -> 0.216887506 | S220: 0.6814494798
A221: Intercompany charges | I221: -0.441814893 | J221: 1.702538482 | K221: 0.09417936548 | L221: 0.2100456621 | M221: -0.1660377358
A222: Other depreciation and amortization | I222: -0.1758389262 | J222: 0.04804560261 | K222: 0.3209013209 | L222: 1 | M222: -0.2058823529 | R222: =(R68-Q68)/Q68 -> -0.2713787086 | S222: 1.148502994
A223: Interest expense, net | I223: -0.2365462033 | J223: 1.903812352 | K223: 0.3587977458 | L223: 0.10906298 | M223: 0.04709141274 | R223: 19.03084416 | S223: 0.5060377664
... 13 more rows

Sheet Limitations and Assumptions
A2: Limitations
A3: * Interest rate regulation impact analysis is retroactive and relies on assumptions about market responses to changes in the interest rate ceiling.
A4: * These assumptions include:
A5: * Demand is price inelastic - meaning a decrease or increase in the interest rate charge will not significantly shift the amount of money borrowed.
A6: * Total cost of business would have remained relatively the same regardless of interest rate ceilings. In reality both Money Mart and Cash Store Financial would have likely adjusted operations if revenue decreased.
A7: * The financial data listed for both companies is based on national operations, so conclusions and insight into provincial operations and store level operations is limited.
A8: * For simplicity we have only included one input for weighting each provincial market as a portion of company revenue. In reality market share of each province varies for the two companies - see 'Store Growth' tab for more detail.
A9: * New Brunswick does not currently enforce a interest rate ceiling, but we have used the rate Money Mart charges in that provinces for this model ($21 dollar per $100).
A10: * Newfoundland does not have a provincially regulated interest rate ceiling on payday loans, but the industry continues to operate there. For the sake of this model we have set NFLD's interest rate ceiling at an arbitrary 25%.
A11: Notes
A12: * Default provicial market share weights are based on estimates of total payday lending outlets in each province and the knowledge that Money Mart does not offer payday loans in PEI and NFLD currently
A13: * The Cash Store Financial Changed their annual reporting period in 2010. As a result 2010 numbers are based on a 15 month period - any year to year comparison must take this into account.
A14: * Financial data for Cash Store Financial is available prior to 2009 but has not be included because of the includision of the companies rental division operations. Starting in 2009 the rental division was reported as a separate entity.
A15: * Financial data for Cash Store Financial from 2010-2013 also includes UK operations. However, size of UK operations is minimal. UK operations account for 5.7% of total revenues in 2013, 5.8% of total revenues in 2012, and 1.3% of total revenues in 2011.
A16: * Retention Payments (a line item on Cash Store's income statements) are payments made to third party lenders for losses on loans the Cash Store brokered.
A17: * Money Mart does not offer payday loan services in PEI and NFLD. Prior to it's collapse The Cash Store Financial offered payday loan services in all provinces.
A18: * Provincial payday lending regulation began to take effect in 2009. This is likely one of the major factors leading to a decline in consumer lending revenue and stores for Money Mart between 2008 and 2009.

Sheet Store Growth
A2: Money Mart
A3: Stores | B3: 2000 | C3: 2001 | D3: 2002 | E3: 2003 | F3: 2004 | G3: 2005 | H3: 2006 | I3: 2007 | J3: 2008 | K3: 2009 | L3: 2010 | M3: 2011 | N3: 2012 | O3: 2013
A4: Company Operated | B4: 139 | C4: 157 | D4: 167 | E4: 181 | F4: 194 | G4: 214 | H4: 242 | I4: 360 | J4: 419 | K4: 399 | L4: 403 | M4: 455 | N4: 474 | O4: 479
A5: Franchised | B5: 81 | C5: 86 | D5: 87 | E5: 109 | F5: 117 | G5: 129 | H5: 128 | I5: 54 | J5: 61 | K5: 62 | L5: 62 | M5: 22 | N5: 14 | O5: 10
A6: Total | B6: =SUM(B4:B5) -> 220 | C6: =SUM(C4:C5) -> 243 | D6: 254 | E6: 290 | F6: 311 | G6: 343 | H6: 370 | I6: 414 | J6: 480 | K6: 461 | L6: 465 | M6: 477 | N6: 488 | O6: 489
A7: Growth Rates
A8: Company Operated | C8: =(C4-B4)/B4 -> 0.1294964029 | D8: =(D4-C4)/C4 -> 0.06369426752 | E8: 0.08383233533 | F8: =(F4-E4)/E4 -> 0.07182320442 | G8: 0.1030927835 | H8: 0.1308411215 | I8: 0.4876033058 | J8: 0.1638888889 | K8: -0.0477326969 | L8: 0.01002506266 | M8: 0.1290322581 | N8: 0.04175824176 | O8: 0.01054852321
A9: Franchised | C9: =(C5-B5)/B5 -> 0.06172839506 | D9: 0.01162790698 | E9: 0.2528735632 | F9: 0.07339449541 | G9: 0.1025641026 | H9: -0.007751937984 | I9: -0.578125 | J9: 0.1296296296 | K9: 0.01639344262 | L9: 0 | M9: -0.6451612903 | N9: -0.3636363636 | O9: -0.2857142857
A10: Total | C10: 0.1045454545 | D10: 0.04526748971 | E10: 0.1417322835 | F10: 0.0724137931 | G10: 0.1028938907 | H10: 0.07871720117 | I10: 0.1189189189 | J10: 0.1594202899 | K10: =(K6-J6)/J6 -> -0.03958333333 | L10: 0.008676789588 | M10: 0.02580645161 | N10: 0.02306079665 | O10: 0.002049180328
A12: Cash Store Financial
B13: 2000 | C13: 2001 | D13: 2002 | E13: 2003 | F13: 2004 | G13: 2005 | H13: 2006 | I13: 2007 | J13: 2008 | K13: 2009 | L13: 2010 | M13: 2011 | N13: 2012 | O13: 2013
A14: Stores | B14: 0 | C14: 6 | D14: 19 | E14: 57 | F14: 108 | G14: 277 | H14: 338 | I14: 358 | J14: 384 | K14: 424 | L14: 542 | M14: 574 | N14: =536-25 -> 511 | O14: =537-27 -> 510
A15: Growth | D15: =(D14-C14)/C14 -> 2.166666667 | E15: =(E14-D14)/D14 -> 2 | F15: 0.8947368421 | G15: 1.564814815 | H15: 0.2202166065 | I15: 0.05917159763 | J15: 0.07262569832 | K15: 0.1041666667 | L15: 0.2783018868 | M15: 0.05904059041 | N15: -0.1097560976 | O15: -0.001956947162
A16: *does not include rental-division stores
A18: ON | G18: 77 | H18: 109 | I18: 114 | J18: 122 | K18: 134 | L18: 187 | M18: 200 | N18: 178 | O18: 174
A19: BC | G19: 50 | H19: 60 | I19: 64 | J19: 68 | K19: 86 | L19: 104 | M19: 110 | N19: 96 | O19: 97
A20: AB | G20: 91 | H20: 100 | I20: 107 | J20: 104 | K20: 113 | L20: 130 | M20: 131 | N20: 121 | O20: 122
A21: SK | G21: 13 | H21: 16 | I21: 17 | J21: 16 | K21: 17 | L21: 35 | M21: 36 | N21: 34 | O21: 34
A22: MB | G22: 17 | H22: 19 | I22: 22 | J22: 31 | K22: 30 | L22: 32 | M22: 34 | N22: 24 | O22: 25
A23: NS | G23: 12 | H23: 12 | I23: 12 | J23: 15 | K23: 17 | L23: 22 | M23: 27 | N23: 25 | O23: 25
A24: NB | G24: 11 | H24: 11 | I24: 11 | J24: 13 | K24: 12 | L24: 12 | M24: 15 | N24: 14 | O24: 14
A25: PEI | G25: 2 | H25: 3 | I25: 3 | J25: 3 | K25: 3 | L25: 4 | M25: 4 | N25: 3 | O25: 3
A26: NFLD | G26: 2 | H26: 6 | I26: 6 | J26: 10 | K26: 10 | L26: 13 | M26: 14 | N26: 13 | O26: 13
A27: NWT | G27: 1 | H27: 1 | I27: 1 | J27: 1 | K27: 1 | L27: 2 | M27: 2 | N27: 2 | O27: 2
A28: Yukon | G28: 1 | H28: 1 | I28: 1 | J28: 1 | K28: 1 | L28: 1 | M28: 1 | N28: 1 | O28: 1
A29: Total | G29: =SUM(G18:G28) -> 277 | H29: =SUM(H18:H28) -> 338 | I29: =SUM(I18:I28) -> 358 | J29: =SUM(J18:J28) -> 384 | K29: 424 | L29: 542 | M29: 574 | N29: 511 | O29: 510
A31: ON | G31: =G18/G$29 -> 0.2779783394 | H31: =H18/H$29 -> 0.3224852071 | I31: 0.3184357542 | J31: 0.3177083333 | K31: 0.3160377358 | L31: 0.3450184502 | M31: 0.3484320557 | N31: 0.3483365949 | O31: 0.3411764706
A32: BC | G32: =G19/G$29 -> 0.1805054152 | H32: 0.1775147929 | I32: 0.1787709497 | J32: 0.1770833333 | K32: 0.2028301887 | L32: 0.1918819188 | M32: 0.1916376307 | N32: 0.1878669276 | O32: 0.1901960784
A33: AB | G33: =G20/G$29 -> 0.3285198556 | H33: 0.2958579882 | I33: 0.2988826816 | J33: 0.2708333333 | K33: 0.266509434 | L33: 0.2398523985 | M33: 0.2282229965 | N33: 0.2367906067 | O33: 0.2392156863
A34: SK | G34: =G21/G$29 -> 0.04693140794 | H34: 0.04733727811 | I34: 0.04748603352 | J34: 0.04166666667 | K34: 0.04009433962 | L34: 0.06457564576 | M34: 0.06271777003 | N34: 0.06653620352 | O34: 0.06666666667
A35: MB | G35: =G22/G$29 -> 0.06137184116 | H35: 0.05621301775 | I35: 0.06145251397 | J35: 0.08072916667 | K35: 0.07075471698 | L35: 0.05904059041 | M35: 0.05923344948 | N35: 0.0469667319 | O35: 0.04901960784
A36: NS | G36: =G23/G$29 -> 0.04332129964 | H36: 0.03550295858 | I36: 0.03351955307 | J36: 0.0390625 | K36: 0.04009433962 | L36: 0.0405904059 | M36: 0.04703832753 | N36: 0.04892367906 | O36: 0.04901960784
A37: NB | G37: =G24/G$29 -> 0.03971119134 | H37: 0.0325443787 | I37: 0.03072625698 | J37: 0.03385416667 | K37: 0.02830188679 | L37: 0.0221402214 | M37: 0.02613240418 | N37: 0.02739726027 | O37: 0.02745098039
A38: PEI | G38: =G25/G$29 -> 0.007220216606 | H38: 0.008875739645 | I38: 0.008379888268 | J38: 0.0078125 | K38: 0.007075471698 | L38: 0.007380073801 | M38: 0.006968641115 | N38: 0.005870841487 | O38: 0.005882352941
A39: NFLD | G39: =G26/G$29 -> 0.007220216606 | H39: 0.01775147929 | I39: 0.01675977654 | J39: 0.02604166667 | K39: 0.02358490566 | L39: 0.02398523985 | M39: 0.0243902439 | N39: 0.02544031311 | O39: 0.02549019608
A40: NWT | G40: =G27/G$29 -> 0.003610108303 | H40: 0.002958579882 | I40: 0.002793296089 | J40: 0.002604166667 | K40: 0.002358490566 | L40: 0.0036900369 | M40: 0.003484320557 | N40: 0.003913894325 | O40: 0.003921568627
A41: Yukon | G41: =G28/G$29 -> 0.003610108303 | H41: 0.002958579882 | I41: 0.002793296089 | J41: 0.002604166667 | K41: 0.002358490566 | L41: 0.00184501845 | M41: 0.001742160279 | N41: 0.001956947162 | O41: 0.001960784314
A42: Total | G42: =SUM(G31:G41) -> 1 | H42: =SUM(H31:H41) -> 1 | I42: =SUM(I31:I41) -> 1 | J42: =SUM(J31:J41) -> 1 | K42: =SUM(K31:K41) -> 1 | L42: =SUM(L31:L41) -> 1 | M42: =SUM(M31:M41) -> 1 | N42: =SUM(N31:N41) -> 1 | O42: =SUM(O31:O41) -> 1
